[Event "*** Titled Tuesday Blitz"]
[Site "Chess.com"]
[Date "2020.05.26"]
[Round "7"]
[White "CroissantNeuf"]
[Black "Machidon"]
[Result "1-0"]
[WhiteElo "2369"]
[BlackElo "2497"]
[TimeControl "180+1"]
[EndTime "11:22:28 PDT"]
[Termination "CroissantNeuf won by resignation"]

1. e4 {[%clk 0:03:00.9]} 1... c6 {[%clk 0:03:00.2]} 2. Nc3 {[%clk 0:02:59.9]}
2... d5 {[%clk 0:03:01.1]} 3. Nf3 {[%clk 0:03:00.4]} 3... dxe4 {[%clk
0:03:01.5]} 4. Nxe4 {[%clk 0:03:01]} 4... Nf6 {[%clk 0:03:02.4]} 5. Qe2 {[%clk
0:02:59.2]} 5... Nxe4 {[%clk 0:03:01]} 6. Qxe4 {[%clk 0:02:59.6]} 6... Qd5
{[%clk 0:03:01.5]} 7. Qf4 {[%clk 0:02:59.2]} 7... Qf5 {[%clk 0:03:01.6]} 8. Qe3
{[%clk 0:02:57]} 8... Qe6 {[%clk 0:02:51.4]} 9. b3 {[%clk 0:02:54.2]} 9... Qxe3+
{[%clk 0:02:42]} 10. fxe3 {[%clk 0:02:53.9]} 10... Bf5 {[%clk 0:02:33.2]} 11.
Bb2 {[%clk 0:02:40.3]} 11... Nd7 {[%clk 0:02:33.3]} 12. O-O-O {[%clk 0:02:38.2]}
12... e6 {[%clk 0:02:27]} 13. Be2 {[%clk 0:02:34]} 13... Be7 {[%clk 0:02:20]}
14. Rhg1 {[%clk 0:02:00]} 14... Bf6 {[%clk 0:02:19.3]} 15. g4 {[%clk 0:01:55.1]}
15... Bxb2+ {[%clk 0:02:16.3]} 16. Kxb2 {[%clk 0:01:54.3]} 16... Be4 {[%clk
0:02:15.9]} 17. Rgf1 {[%clk 0:01:38.3]} 17... Ke7 {[%clk 0:01:58.8]} 18. Rf2
{[%clk 0:01:21.8]} 18... f6 {[%clk 0:01:31.2]} 19. g5 {[%clk 0:01:18.4]} 19...
Bxf3 {[%clk 0:01:17.3]} 20. gxf6+ {[%clk 0:01:17.2]} 20... gxf6 {[%clk
0:01:18.2]} 21. Rxf3 {[%clk 0:01:04.1]} 21... Rhg8 {[%clk 0:01:19.1]} 22. Rh3
{[%clk 0:01:02]} 22... Rg7 {[%clk 0:01:19.4]} 23. Rf1 {[%clk 0:00:42.2]} 23...
Rag8 {[%clk 0:00:41.5]} 24. Bd3 {[%clk 0:00:32.6]} 24... Ne5 {[%clk 0:00:39.8]}
25. Rh6 {[%clk 0:00:13.9]} 25... f5 {[%clk 0:00:20.5]} 26. Be2 {[%clk
0:00:09.2]} 26... Nf7 {[%clk 0:00:15]} 27. Rh4 {[%clk 0:00:06.2]} 27... Ne5
{[%clk 0:00:14.1]} 28. Rh6 {[%clk 0:00:04]} 28... Ng6 {[%clk 0:00:14.1]} 29. Bc4
{[%clk 0:00:02.9]} 29... Nf8 {[%clk 0:00:11.7]} 30. Rf2 {[%clk 0:00:02.1]} 30...
Rg2 {[%clk 0:00:10]} 31. Rxg2 {[%clk 0:00:02.4]} 31... Rxg2 {[%clk 0:00:10.9]}
32. Kc3 {[%clk 0:00:03.2]} 32... b5 {[%clk 0:00:10.2]} 33. Bf1 {[%clk 0:00:03]}
33... Rf2 {[%clk 0:00:09.3]} 34. Bd3 {[%clk 0:00:03.6]} 34... Kf7 {[%clk
0:00:09.1]} 35. Rh4 {[%clk 0:00:03]} 35... Kg7 {[%clk 0:00:07.6]} 36. a4 {[%clk
0:00:03.7]} 36... a6 {[%clk 0:00:06.8]} 37. axb5 {[%clk 0:00:03.9]} 37... axb5
{[%clk 0:00:07.7]} 38. Rd4 {[%clk 0:00:03.2]} 38... Rxh2 {[%clk 0:00:07]} 39.
Rd8 {[%clk 0:00:03.8]} 39... h5 {[%clk 0:00:06.9]} 40. Rc8 {[%clk 0:00:04.4]}
40... h4 {[%clk 0:00:06.7]} 41. Rxc6 {[%clk 0:00:04.9]} 41... h3 {[%clk
0:00:06.3]} 42. Bxb5 {[%clk 0:00:03.9]} 42... Rf2 {[%clk 0:00:03.5]} 43. Ra6
{[%clk 0:00:03.8]} 43... h2 {[%clk 0:00:02.9]} 44. Ra1 {[%clk 0:00:03.9]} 44...
Ng6 {[%clk 0:00:03.1]} 45. Rh1 {[%clk 0:00:03.7]} 45... Ne5 {[%clk 0:00:02.4]}
46. d4 {[%clk 0:00:03.1]} 46... Ng4 {[%clk 0:00:02.6]} 47. Bc6 {[%clk 0:00:04]}
47... Re2 {[%clk 0:00:02.3]} 48. Kd3 {[%clk 0:00:03.8]} 48... Rxe3+ {[%clk
0:00:03]} 49. Kd2 {[%clk 0:00:04.4]} 49... Rg3 {[%clk 0:00:03.7]} 50. b4 {[%clk
0:00:04]} 50... Rg1 {[%clk 0:00:04]} 51. b5 {[%clk 0:00:04.5]} 51... Kf6 {[%clk
0:00:04.1]} 52. b6 {[%clk 0:00:04]} 52... Rxh1 {[%clk 0:00:04]} 53. Bxh1 {[%clk
0:00:04.9]} 53... Nf2 {[%clk 0:00:04.6]} 54. Bg2 {[%clk 0:00:05.1]} 54... Ne4+
{[%clk 0:00:05]} 55. Ke3 {[%clk 0:00:03.8]} 55... Nd6 {[%clk 0:00:05.4]} 56. b7
{[%clk 0:00:03.6]} 56... f4+ {[%clk 0:00:05.8]} 57. Kxf4 {[%clk 0:00:03.2]}
57... Nxb7 {[%clk 0:00:06.5]} 58. Bxb7 {[%clk 0:00:02.6]} 58... Ke7 {[%clk
0:00:07.4]} 59. Bh1 {[%clk 0:00:03.3]} 59... Kd6 {[%clk 0:00:08.3]} 60. Kg3
{[%clk 0:00:03.5]} 60... e5 {[%clk 0:00:08.4]} 61. dxe5+ {[%clk 0:00:03.4]}
61... Kxe5 {[%clk 0:00:09.3]} 62. Kxh2 {[%clk 0:00:04]} 62... Kd4 {[%clk
0:00:10.2]} 63. Kg3 {[%clk 0:00:04.5]} 63... Ke3 {[%clk 0:00:11.1]} 64. Bg2
{[%clk 0:00:04.6]} 64... Kd4 {[%clk 0:00:12]} 65. Kf4 {[%clk 0:00:04.3]} 65...
Kc3 {[%clk 0:00:11.5]} 66. Be4 {[%clk 0:00:05.2]} 1-0

[Event "*** Titled Tuesday Blitz"]
[Site "Chess.com"]
[Date "2020.05.26"]
[Round "7"]
[White "Chuchofrio1"]
[Black "Kapibara_Warri0r"]
[Result "0-1"]
[WhiteElo "2268"]
[BlackElo "2109"]
[TimeControl "180+1"]
[EndTime "11:22:28 PDT"]
[Termination "Kapibara_Warri0r won by resignation"]

1. e4 {[%clk 0:02:57.6]} 1... e5 {[%clk 0:03:00.1]} 2. Nf3 {[%clk 0:02:53.8]}
2... Nc6 {[%clk 0:03:00.4]} 3. Bc4 {[%clk 0:02:51.2]} 3... Nf6 {[%clk
0:02:59.7]} 4. d3 {[%clk 0:02:50.9]} 4... Be7 {[%clk 0:02:59.9]} 5. O-O {[%clk
0:02:50.8]} 5... O-O {[%clk 0:03:00]} 6. Be3 {[%clk 0:02:50.1]} 6... d5 {[%clk
0:02:54.2]} 7. exd5 {[%clk 0:02:49.4]} 7... Nxd5 {[%clk 0:02:54.3]} 8. Nc3
{[%clk 0:02:49.6]} 8... Nb6 {[%clk 0:02:48.6]} 9. Bb3 {[%clk 0:02:48.8]} 9...
Bg4 {[%clk 0:02:47.9]} 10. h3 {[%clk 0:02:45.7]} 10... Bh5 {[%clk 0:02:47.3]}
11. Ne4 {[%clk 0:02:42.5]} 11... Kh8 {[%clk 0:02:39.9]} 12. Ng3 {[%clk
0:02:42.5]} 12... Bg6 {[%clk 0:02:34.6]} 13. Nh4 {[%clk 0:02:42.5]} 13... Bxh4
{[%clk 0:02:33]} 14. Qg4 {[%clk 0:02:40.1]} 14... Bxg3 {[%clk 0:02:27.3]} 15.
fxg3 {[%clk 0:02:41]} 15... Nd4 {[%clk 0:02:27.3]} 16. Kh2 {[%clk 0:02:37.7]}
16... f5 {[%clk 0:02:22.2]} 17. Qd1 {[%clk 0:02:36.8]} 17... Nd5 {[%clk
0:02:16.2]} 18. Bxd5 {[%clk 0:02:36.4]} 18... Qxd5 {[%clk 0:02:15.4]} 19. c3
{[%clk 0:02:34.8]} 19... Nc6 {[%clk 0:02:12.3]} 20. Qe2 {[%clk 0:02:34]} 20...
Rad8 {[%clk 0:02:11.3]} 21. Rad1 {[%clk 0:02:33.3]} 21... Qd6 {[%clk 0:02:04.6]}
22. Qf2 {[%clk 0:02:25.8]} 22... b6 {[%clk 0:01:56.9]} 23. Kh1 {[%clk 0:02:22]}
23... Ne7 {[%clk 0:01:50.3]} 24. d4 {[%clk 0:02:19.2]} 24... e4 {[%clk
0:01:38.2]} 25. Bf4 {[%clk 0:02:18.2]} 25... Qc6 {[%clk 0:01:35.7]} 26. Be5
{[%clk 0:02:12.1]} 26... Nd5 {[%clk 0:01:29.6]} 27. Rfe1 {[%clk 0:02:05.8]}
27... Bh5 {[%clk 0:01:19.9]} 28. Rc1 {[%clk 0:02:04]} 28... Ne7 {[%clk
0:01:02.5]} 29. c4 {[%clk 0:01:49.9]} 29... Ng6 {[%clk 0:01:00.4]} 30. d5 {[%clk
0:01:50.1]} 30... Qd7 {[%clk 0:00:55.4]} 31. Bc3 {[%clk 0:01:48.4]} 31... Rde8
{[%clk 0:00:48.3]} 32. b3 {[%clk 0:01:42.3]} 32... f4 {[%clk 0:00:46.5]} 33. g4
{[%clk 0:01:40.9]} 33... Bxg4 {[%clk 0:00:44.2]} 34. hxg4 {[%clk 0:01:41.8]}
34... Qxg4 {[%clk 0:00:44.1]} 35. Qd4 {[%clk 0:01:40.7]} 35... Ne5 {[%clk
0:00:26.5]} 36. Rxe4 {[%clk 0:01:37.9]} 36... Qh5+ {[%clk 0:00:19.5]} 37. Kg1
{[%clk 0:01:36.5]} 37... f3 {[%clk 0:00:11.6]} 38. Rh4 {[%clk 0:01:05]} 38...
f2+ {[%clk 0:00:09.8]} 39. Kf1 {[%clk 0:00:44.4]} 39... Qg6 {[%clk 0:00:09.7]}
40. Rf4 {[%clk 0:00:21.5]} 40... Rxf4 {[%clk 0:00:08.8]} 41. Qxf4 {[%clk
0:00:22.1]} 41... Nd3 {[%clk 0:00:07.6]} 42. Qd2 {[%clk 0:00:19.2]} 42... Nxc1
{[%clk 0:00:07.8]} 43. Qxc1 {[%clk 0:00:20.1]} 43... Qf7 {[%clk 0:00:06.1]} 44.
Qc2 {[%clk 0:00:17.7]} 44... Rf8 {[%clk 0:00:06.2]} 45. Qd3 {[%clk 0:00:16.3]}
45... Qf5 {[%clk 0:00:05.8]} 46. Qxf5 {[%clk 0:00:15.2]} 46... Rxf5 {[%clk
0:00:06.7]} 47. Bd4 {[%clk 0:00:15.7]} 47... Kg8 {[%clk 0:00:06]} 48. Bxf2
{[%clk 0:00:15.8]} 48... Kf7 {[%clk 0:00:06.6]} 49. Ke2 {[%clk 0:00:16]} 49...
Ke7 {[%clk 0:00:06.9]} 50. Bd4 {[%clk 0:00:16.1]} 50... g5 {[%clk 0:00:07.1]}
51. g3 {[%clk 0:00:15.4]} 51... h5 {[%clk 0:00:07.3]} 52. Bf2 {[%clk 0:00:13.2]}
52... g4 {[%clk 0:00:07.1]} 53. Be1 {[%clk 0:00:09.2]} 53... Rf3 {[%clk
0:00:07]} 54. Bf2 {[%clk 0:00:09.3]} 54... Kd6 {[%clk 0:00:07.2]} 55. Be1 {[%clk
0:00:09.1]} 55... c6 {[%clk 0:00:07.8]} 56. dxc6 {[%clk 0:00:08.3]} 56... Kxc6
{[%clk 0:00:08.7]} 57. b4 {[%clk 0:00:08.1]} 57... Rf6 {[%clk 0:00:07.9]} 58.
Kd3 {[%clk 0:00:06.1]} 58... Rf1 {[%clk 0:00:06.9]} 59. Ke2 {[%clk 0:00:05.8]}
59... Rf3 {[%clk 0:00:06.9]} 60. Bf2 {[%clk 0:00:03.3]} 60... Ra3 {[%clk
0:00:06.9]} 61. b5+ {[%clk 0:00:03.1]} 61... Kc7 {[%clk 0:00:06.5]} 62. Kf1
{[%clk 0:00:01.7]} 62... Rxa2 {[%clk 0:00:06.8]} 63. Bd4 {[%clk 0:00:02.6]}
63... Rd2 {[%clk 0:00:06.4]} 64. Ke1 {[%clk 0:00:02.8]} 64... Rxd4 {[%clk
0:00:06.1]} 65. Ke2 {[%clk 0:00:03.7]} 65... Rxc4 {[%clk 0:00:06.5]} 0-1

[Event "*** Titled Tuesday Blitz"]
[Site "Chess.com"]
[Date "2020.05.26"]
[Round "7"]
[White "Dinamo81"]
[Black "MusicCityMaster"]
[Result "1-0"]
[WhiteElo "2628"]
[BlackElo "2375"]
[TimeControl "180+1"]
[EndTime "11:22:34 PDT"]
[Termination "Dinamo81 won by resignation"]

1. d4 {[%clk 0:03:00.9]} 1... d5 {[%clk 0:02:58.6]} 2. Bf4 {[%clk 0:02:59.6]}
2... Nc6 {[%clk 0:02:56.6]} 3. e3 {[%clk 0:02:51.8]} 3... Bf5 {[%clk 0:02:56.4]}
4. Nf3 {[%clk 0:02:43.4]} 4... Qd7 {[%clk 0:02:55.7]} 5. a3 {[%clk 0:02:30]}
5... f6 {[%clk 0:02:54.8]} 6. c4 {[%clk 0:02:22.3]} 6... e6 {[%clk 0:02:48.9]}
7. Nc3 {[%clk 0:02:20.7]} 7... g5 {[%clk 0:02:44]} 8. Bg3 {[%clk 0:02:20.7]}
8... h5 {[%clk 0:02:43.8]} 9. h3 {[%clk 0:02:18.2]} 9... a6 {[%clk 0:02:31.6]}
10. Bd3 {[%clk 0:01:59.7]} 10... Nge7 {[%clk 0:02:29.4]} 11. b4 {[%clk
0:01:53.5]} 11... Bxd3 {[%clk 0:02:26.1]} 12. Qxd3 {[%clk 0:01:53.1]} 12... Nf5
{[%clk 0:02:26.2]} 13. Ne2 {[%clk 0:01:46.9]} 13... Nxg3 {[%clk 0:02:13.7]} 14.
Nxg3 {[%clk 0:01:47.8]} 14... Bd6 {[%clk 0:01:58.3]} 15. cxd5 {[%clk 0:01:43.8]}
15... exd5 {[%clk 0:01:58]} 16. Nf5 {[%clk 0:01:44.1]} 16... O-O-O {[%clk
0:01:53.2]} 17. Nd2 {[%clk 0:01:37.7]} 17... Ne7 {[%clk 0:01:44.1]} 18. Nxe7+
{[%clk 0:01:36.7]} 18... Qxe7 {[%clk 0:01:43.4]} 19. Qf5+ {[%clk 0:01:29.4]}
19... Kb8 {[%clk 0:01:41]} 20. Ke2 {[%clk 0:01:28.4]} 20... c6 {[%clk 0:01:22]}
21. Nb3 {[%clk 0:01:17]} 21... Qh7 {[%clk 0:01:18]} 22. Qxh7 {[%clk 0:01:15.5]}
22... Rxh7 {[%clk 0:01:18]} 23. g3 {[%clk 0:01:08.2]} 23... f5 {[%clk
0:01:14.7]} 24. Kd3 {[%clk 0:01:03.1]} 24... Rf7 {[%clk 0:01:05.9]} 25. Rae1
{[%clk 0:00:56.8]} 25... Re8 {[%clk 0:00:59.5]} 26. h4 {[%clk 0:00:56.3]} 26...
f4 {[%clk 0:00:56.1]} 27. hxg5 {[%clk 0:00:43.8]} 27... fxg3 {[%clk 0:00:51.9]}
28. f4 {[%clk 0:00:38.4]} 28... Rh8 {[%clk 0:00:49.6]} 29. Rh4 {[%clk
0:00:37.8]} 29... Rf5 {[%clk 0:00:39]} 30. Rg1 {[%clk 0:00:36.3]} 30... Kc7
{[%clk 0:00:25]} 31. Rxg3 {[%clk 0:00:35.9]} 31... b6 {[%clk 0:00:24.5]} 32.
Rgh3 {[%clk 0:00:34.1]} 32... a5 {[%clk 0:00:20.7]} 33. bxa5 {[%clk 0:00:29.2]}
33... bxa5 {[%clk 0:00:20.9]} 34. Rxh5 {[%clk 0:00:29.1]} 34... Rb8 {[%clk
0:00:20.3]} 35. Rh7+ {[%clk 0:00:28.8]} 35... Kb6 {[%clk 0:00:19.4]} 36. R3h6
{[%clk 0:00:26.7]} 36... Bxa3 {[%clk 0:00:17.1]} 37. Nd2 {[%clk 0:00:14.8]}
37... a4 {[%clk 0:00:16.4]} 38. Nf3 {[%clk 0:00:15]} 38... Bf8 {[%clk
0:00:14.6]} 39. Rh2 {[%clk 0:00:13.1]} 39... a3 {[%clk 0:00:14.2]} 40. Ne5
{[%clk 0:00:13.3]} 40... Ka6 {[%clk 0:00:10.4]} 41. Nd7 {[%clk 0:00:12.7]} 41...
Rb3+ {[%clk 0:00:08.8]} 42. Kc2 {[%clk 0:00:11.2]} 42... Rb2+ {[%clk 0:00:09.5]}
43. Kc3 {[%clk 0:00:11.5]} 43... Rxh2 {[%clk 0:00:09.4]} 44. Rxh2 {[%clk
0:00:12]} 44... Rf7 {[%clk 0:00:10]} 45. Nxf8 {[%clk 0:00:10.7]} 45... Rxf8
{[%clk 0:00:08.8]} 46. Ra2 {[%clk 0:00:11.2]} 46... Re8 {[%clk 0:00:07.6]} 47.
Rxa3+ {[%clk 0:00:11.7]} 47... Kb5 {[%clk 0:00:08.3]} 48. Kd2 {[%clk 0:00:10.3]}
48... c5 {[%clk 0:00:08.8]} 49. dxc5 {[%clk 0:00:09.3]} 49... Kxc5 {[%clk
0:00:09.6]} 50. Rc3+ {[%clk 0:00:09.3]} 50... Kd6 {[%clk 0:00:09.4]} 51. Rd3
{[%clk 0:00:09.9]} 51... Re4 {[%clk 0:00:08.6]} 52. Ke2 {[%clk 0:00:10.2]} 52...
Rc4 {[%clk 0:00:09]} 53. Kf3 {[%clk 0:00:10.5]} 53... Rc1 {[%clk 0:00:09.5]} 54.
Rd2 {[%clk 0:00:10.4]} 54... Rg1 {[%clk 0:00:09.7]} 55. Rg2 {[%clk 0:00:10.3]}
55... Rf1+ {[%clk 0:00:09.8]} 56. Kg4 {[%clk 0:00:09.7]} 56... Re1 {[%clk
0:00:09.7]} 57. Rg3 {[%clk 0:00:10]} 57... Ke6 {[%clk 0:00:07.7]} 58. f5+ {[%clk
0:00:08.4]} 58... Ke5 {[%clk 0:00:08.1]} 59. f6 {[%clk 0:00:07.3]} 59... Rf1
{[%clk 0:00:06.4]} 60. Kh5 {[%clk 0:00:07.1]} 60... Kf5 {[%clk 0:00:06.2]} 61.
Kh6 {[%clk 0:00:06.7]} 61... Rh1+ {[%clk 0:00:05.9]} 62. Kg7 {[%clk 0:00:06.9]}
62... Rh5 {[%clk 0:00:05.4]} 63. f7 {[%clk 0:00:06.8]} 63... Rxg5+ {[%clk
0:00:05.2]} 64. Rxg5+ {[%clk 0:00:06.3]} 64... Kxg5 {[%clk 0:00:06.1]} 65. f8=Q
{[%clk 0:00:06.8]} 65... Kg4 {[%clk 0:00:07]} 66. Qf4+ {[%clk 0:00:06.9]} 66...
Kh3 {[%clk 0:00:07]} 67. Qe5 {[%clk 0:00:07]} 67... Kg2 {[%clk 0:00:07.4]} 68.
Qxd5+ {[%clk 0:00:07.5]} 68... Kf2 {[%clk 0:00:08.1]} 69. e4 {[%clk 0:00:08.1]}
69... Ke3 {[%clk 0:00:08.7]} 70. e5 {[%clk 0:00:08.8]} 1-0

[Event "*** Titled Tuesday Blitz"]
[Site "Chess.com"]
[Date "2020.05.26"]
[Round "7"]
[White "Chessialist"]
[Black "dpopadic"]
[Result "1-0"]
[WhiteElo "2538"]
[BlackElo "2381"]
[TimeControl "180+1"]
[EndTime "11:22:34 PDT"]
[Termination "Chessialist won by resignation"]

1. e4 {[%clk 0:03:00.9]} 1... c5 {[%clk 0:02:59.4]} 2. Nf3 {[%clk 0:03:00.5]}
2... Nc6 {[%clk 0:02:59.3]} 3. d4 {[%clk 0:03:00.9]} 3... cxd4 {[%clk
0:02:58.6]} 4. Nxd4 {[%clk 0:03:01.8]} 4... Nf6 {[%clk 0:02:58.9]} 5. Nc3 {[%clk
0:03:01.8]} 5... e5 {[%clk 0:02:59]} 6. Ndb5 {[%clk 0:03:01.9]} 6... d6 {[%clk
0:02:59.1]} 7. Bg5 {[%clk 0:03:02.6]} 7... a6 {[%clk 0:02:59.1]} 8. Na3 {[%clk
0:03:03.3]} 8... b5 {[%clk 0:02:58.8]} 9. Nd5 {[%clk 0:03:04]} 9... Be7 {[%clk
0:02:58.9]} 10. Bxf6 {[%clk 0:03:04.6]} 10... Bxf6 {[%clk 0:02:59]} 11. c4
{[%clk 0:03:05.5]} 11... b4 {[%clk 0:02:58.5]} 12. Nc2 {[%clk 0:03:06.1]} 12...
O-O {[%clk 0:02:57.6]} 13. h4 {[%clk 0:03:06]} 13... Rb8 {[%clk 0:02:56.3]} 14.
b3 {[%clk 0:03:05.9]} 14... a5 {[%clk 0:02:56]} 15. g3 {[%clk 0:03:04.2]} 15...
Be6 {[%clk 0:02:54.1]} 16. Bd3 {[%clk 0:02:54.6]} 16... Kh8 {[%clk 0:02:39.4]}
17. Qf3 {[%clk 0:02:51.1]} 17... a4 {[%clk 0:02:22.4]} 18. Kf1 {[%clk
0:02:48.2]} 18... Be7 {[%clk 0:02:06.5]} 19. Kg2 {[%clk 0:02:45.9]} 19... Qd7
{[%clk 0:01:53.7]} 20. Qe3 {[%clk 0:01:52.3]} 20... Rfd8 {[%clk 0:01:21.9]} 21.
Rhd1 {[%clk 0:01:47.9]} 21... Bf8 {[%clk 0:01:17.5]} 22. Be2 {[%clk 0:01:44]}
22... Qb7 {[%clk 0:01:13]} 23. Bf3 {[%clk 0:01:41.6]} 23... Ra8 {[%clk
0:01:08.1]} 24. Rab1 {[%clk 0:01:37.1]} 24... axb3 {[%clk 0:01:04.5]} 25. axb3
{[%clk 0:01:38]} 25... Ra2 {[%clk 0:01:02.1]} 26. Rd2 {[%clk 0:01:38.2]} 26...
Rda8 {[%clk 0:01:00.8]} 27. h5 {[%clk 0:01:05.5]} 27... h6 {[%clk 0:00:57.7]}
28. Rbd1 {[%clk 0:00:42.2]} 28... Rb2 {[%clk 0:00:52.3]} 29. Ncxb4 {[%clk
0:00:39.6]} 29... Rxd2 {[%clk 0:00:46.6]} 30. Qxd2 {[%clk 0:00:40.5]} 30... Nxb4
{[%clk 0:00:45.5]} 31. Qxb4 {[%clk 0:00:35]} 31... Qxb4 {[%clk 0:00:44.6]} 32.
Nxb4 {[%clk 0:00:34.9]} 32... Rb8 {[%clk 0:00:45.3]} 33. Nd5 {[%clk 0:00:34.7]}
33... Rxb3 {[%clk 0:00:44.8]} 34. Ra1 {[%clk 0:00:35.1]} 34... Rb8 {[%clk
0:00:42.9]} 35. Ra7 {[%clk 0:00:34.4]} 35... Kg8 {[%clk 0:00:41.6]} 36. Bd1
{[%clk 0:00:29.1]} 36... Bxd5 {[%clk 0:00:37.9]} 37. cxd5 {[%clk 0:00:28.9]}
37... Re8 {[%clk 0:00:37]} 38. Bg4 {[%clk 0:00:28.1]} 38... Be7 {[%clk
0:00:30.3]} 39. Bd7 {[%clk 0:00:27.9]} 39... Rd8 {[%clk 0:00:30.1]} 40. Bf5
{[%clk 0:00:27]} 40... Bg5 {[%clk 0:00:28.4]} 41. Kf3 {[%clk 0:00:20.7]} 41...
Bd2 {[%clk 0:00:27.6]} 42. Kg4 {[%clk 0:00:20.9]} 42... Be1 {[%clk 0:00:26]} 43.
f4 {[%clk 0:00:21.1]} 43... exf4 {[%clk 0:00:23.5]} 44. gxf4 {[%clk 0:00:22]}
44... Bf2 {[%clk 0:00:23.4]} 45. Rb7 {[%clk 0:00:21.8]} 45... Bd4 {[%clk
0:00:22]} 46. Kf3 {[%clk 0:00:21.6]} 46... Ba1 {[%clk 0:00:20.7]} 47. Ke2 {[%clk
0:00:21.9]} 47... Bf6 {[%clk 0:00:20.2]} 48. Kd3 {[%clk 0:00:22]} 48... Bh4
{[%clk 0:00:18]} 49. Kd4 {[%clk 0:00:20.1]} 49... Bf6+ {[%clk 0:00:17]} 50. e5
{[%clk 0:00:20.4]} 50... Bh4 {[%clk 0:00:14.3]} 51. Ke4 {[%clk 0:00:20.3]} 51...
Bg3 {[%clk 0:00:12.9]} 52. e6 {[%clk 0:00:20.7]} 52... fxe6 {[%clk 0:00:12]} 53.
dxe6 {[%clk 0:00:21.6]} 53... Be1 {[%clk 0:00:10.5]} 54. Bg6 {[%clk 0:00:21.8]}
54... d5+ {[%clk 0:00:08.8]} 55. Kf3 {[%clk 0:00:20.8]} 55... Bh4 {[%clk
0:00:08]} 56. f5 {[%clk 0:00:20.6]} 56... Kf8 {[%clk 0:00:06.2]} 57. Rf7+ {[%clk
0:00:18.9]} 57... Kg8 {[%clk 0:00:06.2]} 58. Rc7 {[%clk 0:00:16.1]} 58... Kf8
{[%clk 0:00:05.4]} 59. Ke3 {[%clk 0:00:14.9]} 59... d4+ {[%clk 0:00:03.6]} 60.
Kd3 {[%clk 0:00:15.2]} 60... Be7 {[%clk 0:00:04]} 61. Rb7 {[%clk 0:00:13.6]}
61... Bf6 {[%clk 0:00:02.9]} 62. Rf7+ {[%clk 0:00:13.7]} 62... Kg8 {[%clk
0:00:03]} 63. Rxf6 {[%clk 0:00:14.4]} 63... gxf6 {[%clk 0:00:02.5]} 64. e7
{[%clk 0:00:15.3]} 64... Rb8 {[%clk 0:00:01.7]} 65. e8=Q+ {[%clk 0:00:15.2]}
65... Rxe8 {[%clk 0:00:02.4]} 66. Bxe8 {[%clk 0:00:16.1]} 66... Kf8 {[%clk
0:00:03.1]} 67. Bg6 {[%clk 0:00:17]} 67... Ke7 {[%clk 0:00:03.8]} 68. Kxd4
{[%clk 0:00:17.9]} 68... Kd6 {[%clk 0:00:04.4]} 69. Bf7 {[%clk 0:00:18.5]} 1-0